bitfinex-derivatives/quotes_ETHF0:USTF0_20260305
["timestamp","ask_amount","ask_price","bid_price","bid_amount"]
[1772711985986,0.6241273,2138.3,2137.7,0.23388]
[1772711986179,0.6241273,2138.3,2137.8,0.59995504]
[1772711989183,0.61509382,2138.5,2137.8,0.59995504]
[1772711989887,0.61509382,2138.5,2138.0,0.66237751]
[1772711994892,0.61509382,2138.6,2138.0,0.66237751]
[1772711995587,0.61509382,2138.5,2137.9,0.89623751]
[1772711996084,0.61509382,2138.5,2138.0,0.66237751]
[1772711999282,0.60555386,2138.5,2138.0,0.66237751]
[1772711999692,0.61509382,2138.7,2138.0,0.66237751]
[1772712000395,0.61509382,2138.9,2138.1,0.66237751]
[1772712000690,1.92477725,2139.0,2138.1,0.66237751]
[1772712000691,5.8973031,2138.8,2138.1,0.66237751]
[1772712000890,0.61509382,2138.8,2138.1,0.66237751]
[1772712001290,3.86802737,2139.1,2138.3,0.66237751]
[1772712001291,0.61509382,2139.1,2138.3,0.66237751]
[1772712001495,5.28461386,2139.0,2138.3,0.66237751]
[1772712001794,0.61509382,2138.9,2138.3,0.66237751]
[1772712002794,1.92477725,2139.2,2138.3,0.66237751]
[1772712003091,5.90427767,2139.1,2138.3,0.66237751]
[1772712003288,0.61509382,2139.1,2138.5,0.66237751]
[1772712004997,0.61509382,2139.3,2138.5,0.66237751]
[1772712006490,0.61862466,2139.4,2138.9,0.66237751]
[1772712006699,0.61862466,2139.4,2138.9,0.66729298]
[1772712007296,0.00353084,2139.4,2138.9,0.66729298]
[1772712007600,0.61862466,2139.4,2138.9,0.66729298]
[1772712007791,0.61509382,2139.1,2138.6,0.66237751]
[1772712007992,0.00353084,2139.4,2138.4,0.66237751]
[1772712007993,0.61509382,2138.9,2138.4,0.66237751]
[1772712008397,0.61509382,2138.9,2138.5,0.66237751]
[1772712008594,0.61509382,2138.7,2138.2,0.66237751]
[1772712008787,0.61509382,2138.5,2138.2,0.66603275]
[1772712008992,0.61509382,2138.5,2138.0,0.66237751]
[1772712009299,0.61509382,2138.1,2137.5,0.66237751]
[1772712009503,0.61509382,2137.9,2137.5,0.66237751]
[1772712009998,0.61939834,2137.9,2137.5,0.66678636]
[1772712010198,0.61509382,2138.3,2137.6,0.66237751]
[1772712010390,9.966,2138.7,2138.0,0.66237751]
[1772712010590,0.61509382,2138.6,2138.1,1.92477725]
[1772712010794,7.23975598,2139.4,2138.1,1.92477725]
[1772712010795,5.79280462,2139.5,2138.6,0.66237751]
[1772712010997,0.61509382,2139.3,2138.6,0.66237751]
[1772712011193,0.61964976,2139.3,2138.6,0.66237751]
[1772712012002,0.61509382,2139.2,2138.6,0.66237751]
[1772712012297,0.61509382,2138.9,2138.2,0.66237751]
[1772712012497,0.61509382,2138.7,2138.2,0.66237751]
[1772712012999,0.61509382,2138.3,2137.8,0.66237751]
[1772712013200,0.61509382,2138.3,2137.5,0.00440885]
[1772712013397,0.61509382,2138.3,2137.6,0.66237751]
[1772712014208,0.61509382,2138.1,2137.6,0.66237751]
[1772712014597,0.61509382,2138.3,2137.6,0.66237751]
[1772712018500,0.61509382,2138.8,2137.6,0.66237751]
[1772712018706,0.61509382,2138.6,2137.6,0.66237751]
[1772712018899,0.61509382,2138.6,2137.8,0.6438597]
[1772712022501,0.61509382,2138.6,2137.7,0.8777397]
[1772712022902,5.27521458,2138.5,2137.7,0.8777397]
[1772712023206,0.66364311,2138.4,2137.7,0.8777397]
[1772712025610,0.66364311,2138.4,2137.8,0.6438597]
[1772712028810,0.66364311,2138.4,2137.5,41.43553457]
[1772712029012,0.66364311,2138.4,2137.5,0.63553457]
[1772712029213,0.64198199,2138.2,2137.5,0.63553457]
[1772712029405,0.64198199,2138.4,2137.5,0.63553457]
[1772712029714,0.64198199,2138.4,2137.7,0.63112572]
[1772712036418,0.64198199,2138.2,2137.6,0.63112572]
[1772712039330,0.64198199,2138.0,2137.3,0.63112572]
[1772712040425,0.64198199,2138.0,2137.3,0.636484]
[1772712040627,0.64198199,2138.0,2137.4,0.63112572]
[1772712040822,5.79180479,2138.4,2137.3,1.9308703]
[1772712040823,0.64198199,2138.2,2137.6,0.63112572]
[1772712042332,5.29705716,2138.1,2137.6,0.63112572]
[1772712043837,0.64198199,2138.3,2137.6,0.63112572]
[1772712044133,5.29685945,2138.2,2137.6,0.63112572]
[1772712044330,0.64198199,2138.3,2137.6,0.63112572]
[1772712044533,3.88375807,2138.4,2138.0,0.63112572]
[1772712044534,0.64198199,2138.4,2138.0,0.63112572]
[1772712044838,0.64198199,2138.6,2138.0,0.63112572]
[1772712045534,0.64198199,2138.8,2138.2,0.63112572]
[1772712045933,0.64198199,2138.8,2138.0,0.63112572]
[1772712046139,0.64198199,2138.4,2137.7,0.63112572]
[1772712047641,0.64198199,2138.2,2137.5,41.43112572]
[1772712047835,0.64198199,2138.2,2137.6,0.63112572]
[1772712049629,1.92551202,2138.9,2137.9,0.6538321]
[1772712049630,0.67436479,2138.4,2137.9,0.6538321]
[1772712049932,0.67436479,2138.6,2137.9,0.6538321]
[1772712052438,13.87475807,2138.9,2137.4,46.55431]
[1772712052439,1.92551202,2138.4,2137.4,41.4538321]
[1772712052638,0.67436479,2138.1,2137.5,0.6538321]
[1772712053436,0.67436479,2138.1,2136.8,5.75587]
[1772712053437,0.67436479,2137.5,2136.4,0.6538321]
[1772712053745,0.67436479,2137.0,2136.5,0.6538321]
[1772712054643,0.68014707,2137.0,2136.5,0.00585207]
[1772712055641,0.68014707,2137.0,2136.3,0.6538321]
[1772712056541,0.68014707,2137.0,2136.3,0.6593962]
[1772712057244,0.68014707,2137.0,2136.3,0.0055641]
[1772712060346,0.68014707,2137.0,2136.3,0.6593962]
[1772712060548,0.68014707,2137.0,2136.0,0.6538321]
[1772712060747,0.68014707,2137.0,2135.9,62.263]
[1772712060748,0.68014707,2137.0,2136.2,0.6538321]
[1772712061435,0.68014707,2137.0,2136.4,0.6538321]
[1772712061636,0.68014707,2137.0,2136.4,0.00548801]
[1772712061836,0.68014707,2137.0,2136.0,0.6538321]
[1772712062247,0.67436479,2136.8,2135.8,0.6538321]
[1772712062545,0.67436479,2136.8,2135.4,0.6538321]
[1772712062746,0.67436479,2136.8,2135.6,0.6538321]
[1772712062941,0.67436479,2136.8,2135.6,0.65845446]
[1772712063952,0.67436479,2136.6,2135.6,0.00462236]
[1772712064152,0.67436479,2136.4,2135.6,0.00462236]
[1772712067454,0.67436479,2136.4,2135.6,0.65845446]
[1772712068155,0.67436479,2136.4,2135.6,0.00462236]
[1772712068352,0.67436479,2136.4,2135.3,0.8879721]
[1772712068549,0.67436479,2136.4,2135.3,0.6538321]
[1772712069354,0.67436479,2136.4,2135.3,0.65872684]
[1772712069557,0.67436479,2136.2,2135.3,0.00489474]
[1772712071654,0.67436479,2136.2,2135.3,0.65872684]
[1772712072254,0.67436479,2136.2,2135.3,0.00489474]
[1772712072454,0.67436479,2136.2,2135.3,0.65872684]
[1772712076159,0.67436479,2136.2,2135.5,0.6538321]
[1772712077162,0.67436479,2136.2,2135.3,0.65872684]
[1772712077358,0.67436479,2136.2,2134.9,41.03418]
[1772712077661,0.67436479,2136.0,2135.0,0.6538321]
[1772712078059,0.67436479,2135.9,2135.0,0.6538321]
[1772712078259,0.67436479,2135.9,2134.8,0.6538321]
[1772712078466,0.67436479,2135.9,2134.8,0.65740611]
[1772712079667,0.68982845,2135.7,2134.8,0.00357401]
[1772712079967,0.68982845,2135.5,2134.5,0.68852114]
[1772712080969,0.69315713,2135.5,2134.5,0.00436203]
[1772712081367,0.69315713,2135.5,2134.5,0.69288317]
[1772712083259,0.68982845,2135.3,2134.5,0.69288317]
[1772712087574,0.68982845,2135.3,2134.5,0.00436203]
[1772712088570,0.68982845,2135.3,2134.5,0.66895609]
[1772712088873,0.68982845,2135.3,2134.5,0.00436203]
[1772712089374,0.68982845,2135.3,2134.5,0.66895609]
[1772712090971,0.68982845,2135.3,2134.6,0.66459406]
[1772712091177,0.00332868,2135.5,2135.0,0.66459406]
[1772712091769,0.68884031,2135.7,2135.0,0.66459406]
[1772712092777,0.6946535,2135.7,2135.0,0.66459406]
[1772712097687,0.6946535,2135.7,2134.9,0.23419]
[1772712097884,0.6946535,2135.7,2134.9,0.89878406]
[1772712098386,0.6946535,2135.7,2135.0,0.66459406]
[1772712100180,0.00581319,2135.7,2135.0,0.66459406]
[1772712100382,0.68884031,2136.3,2135.4,0.66459406]
[1772712100588,0.68884031,2136.5,2135.6,0.66459406]
[1772712100783,0.68884031,2136.9,2136.0,0.66459406]
[1772712100987,0.68884031,2137.1,2136.4,0.66459406]
[1772712101381,0.69303892,2137.1,2136.4,0.66856203]
[1772712102787,0.69303892,2137.1,2136.4,0.00396797]
[1772712103790,0.68884031,2136.9,2135.9,0.66459406]
[1772712104891,0.68884031,2136.9,2135.9,0.66867904]
[1772712105495,0.68884031,2136.9,2135.9,0.00408498]
[1772712105796,0.68884031,2136.6,2135.3,0.66459406]
[1772712106191,0.68884031,2136.6,2135.2,0.23414]
[1772712106588,0.68884031,2136.6,2135.2,0.90334209]
[1772712107193,0.68884031,2136.4,2135.3,0.66459406]
[1772712107393,0.68884031,2136.2,2135.3,0.66459406]
[1772712114901,0.68884031,2136.2,2135.2,0.00460803]
[1772712115098,0.68884031,2136.2,2135.2,0.65140473]
[1772712120911,9.926,2136.3,2135.2,0.65140473]
[1772712120912,0.67602601,2136.0,2135.2,0.65140473]
[1772712121111,0.40752513,2135.9,2135.2,0.65140473]
[1772712121311,0.67602601,2135.8,2135.2,0.65140473]
[1772712125908,0.67602601,2136.2,2135.2,0.65140473]
[1772712128612,0.67602601,2136.0,2135.2,0.00460803]
[1772712128916,0.67602601,2135.8,2134.8,0.6467967]
[1772712130013,0.67602601,2135.8,2134.8,0.65084955]
[1772712130418,0.67602601,2135.8,2134.9,0.6467967]
[1772712131415,0.67602601,2135.8,2135.1,0.6467967]
[1772712136319,0.67602601,2135.8,2134.8,0.00405285]
[1772712136517,0.67602601,2135.6,2134.8,0.00405285]
[1772712136716,0.68111154,2135.6,2134.8,0.00405285]
[1772712141317,0.62629869,2135.4,2134.8,0.00405285]
[1772712142225,0.62629869,2135.4,2134.5,0.23422]
[1772712142521,0.62629869,2135.4,2134.5,0.67642857]
[1772712143118,0.62629869,2135.4,2134.2,0.67642857]
[1772712149524,0.67468225,2135.2,2134.2,0.67642857]
[1772712149737,0.67468225,2135.0,2134.2,0.67642857]
[1772712152638,0.67468225,2134.8,2134.1,0.00339231]
[1772712153733,0.67468225,2134.6,2134.1,0.00339231]
[1772712154932,0.67468225,2134.5,2133.3,0.23436]
[1772712155138,0.67468225,2134.4,2133.2,0.62273922]
[1772712155633,0.67468225,2134.2,2132.8,0.63456841]
[1772712155834,0.67468225,2134.0,2132.8,0.63456841]
[1772712156028,0.67861549,2134.0,2132.8,0.64033372]
[1772712156233,0.67861549,2134.0,2132.9,0.62273922]
[1772712156635,0.67468225,2133.8,2132.8,0.00576531]
[1772712156837,0.67468225,2133.4,2132.0,0.62273922]
[1772712157141,0.67468225,2133.2,2132.0,0.62273922]
[1772712157642,0.67468225,2133.2,2132.1,0.62273922]
[1772712158937,0.67468225,2133.2,2130.9,7.33102385]
[1772712158938,0.67468225,2132.2,2131.0,0.62273922]
[1772712159440,5.76923,2131.9,2130.3,0.62273922]
[1772712159642,5.76923,2131.9,2129.8,8.13427347]
[1772712159643,0.67468225,2131.2,2130.2,0.62273922]
[1772712159838,0.67468225,2131.0,2130.2,0.62870941]
[1772712160038,0.67468225,2131.0,2130.2,0.00597019]
[1772712160241,0.67468225,2131.0,2129.8,0.80324962]
[1772712160541,0.67468225,2130.2,2128.9,0.62273922]
[1772712160737,3.18450143,2130.3,2128.9,0.62273922]
[1772712160738,0.67468225,2130.0,2128.9,0.62273922]
[1772712160934,0.67468225,2130.0,2128.7,0.62273922]
[1772712161135,0.67468225,2129.9,2128.7,0.62273922]
[1772712161443,10.65368225,2130.2,2129.0,0.62273922]
[1772712161638,0.67468225,2130.2,2129.0,0.62273922]
[1772712162038,0.67468225,2130.1,2129.0,0.62273922]
[1772712162242,0.67468225,2130.1,2128.8,0.62273922]
[1772712163036,0.67468225,2129.8,2128.7,0.62424835]
[1772712163243,0.67468225,2129.6,2128.7,0.62424835]
[1772712163444,0.67902363,2129.6,2128.7,0.62424835]
[1772712163844,0.67468225,2130.2,2128.7,0.62424835]
[1772712164946,0.68020994,2130.2,2128.7,0.62424835]
[1772712165247,0.67468225,2129.7,2128.7,0.62424835]
[1772712165943,0.67468225,2129.7,2128.7,0.00150913]
[1772712166653,0.67468225,2129.7,2128.7,0.62424835]
[1772712169552,0.66504968,2130.0,2128.7,0.62424835]
[1772712170748,0.67057737,2130.2,2128.9,0.63747428]
[1772712170949,0.67057737,2130.2,2129.1,0.63747428]
[1772712173056,0.66504968,2130.0,2128.8,0.63747428]
[1772712173952,0.66504968,2129.7,2128.7,0.00150913]
[1772712174155,0.66504968,2129.6,2128.7,0.00150913]
[1772712174355,0.66504968,2129.6,2128.7,0.63898341]
[1772712177957,0.66504968,2129.6,2128.7,0.00150913]
[1772712178362,0.66504968,2129.6,2128.8,0.63747428]
[1772712178558,0.66504968,2129.6,2128.7,0.00150913]
[1772712178955,0.66504968,2129.6,2128.7,0.63898341]
[1772712180160,0.66504968,2130.0,2128.7,0.63898341]
[1772712180353,0.00552769,2130.2,2128.7,0.63898341]
[1772712180354,0.67057737,2130.2,2129.3,0.63747428]
[1772712181260,0.66504968,2131.0,2130.1,0.63747428]
[1772712181459,0.66504968,2131.4,2130.2,0.63747428]
[1772712181863,0.66504968,2131.4,2130.4,0.63747428]
[1772712182158,0.00477842,2131.4,2130.4,0.64174834]
[1772712183060,0.66504968,2131.8,2130.6,0.63747428]
[1772712184074,0.67110294,2131.8,2130.6,0.63747428]
[1772712185066,0.00605326,2131.8,2130.6,0.63747428]
[1772712186273,0.67110294,2131.8,2130.6,0.63747428]
[1772712188871,0.66504968,2131.7,2130.6,0.63747428]
[1772712189771,0.66504968,2131.5,2130.6,0.63747428]
[1772712189973,0.66504968,2131.3,2130.4,0.00427406]
[1772712190166,0.66504968,2131.1,2129.5,0.23478]
[1772712190373,0.66504968,2131.1,2129.6,0.63747428]
[1772712190672,0.66504968,2131.1,2129.0,5.77704]
[1772712190673,0.66504968,2130.7,2129.1,0.63747428]
[1772712190867,0.66504968,2130.5,2129.1,0.63747428]
[1772712191176,0.66504968,2130.1,2128.5,41.43747428]
[1772712191365,0.66504968,2129.9,2128.6,0.63747428]
[1772712191565,0.66504968,2129.7,2128.6,0.63747428]
[1772712192271,0.67019419,2129.7,2128.6,0.00592515]
[1772712192671,0.67019419,2129.7,2128.6,0.64339943]
[1772712195868,0.66504968,2129.0,2127.5,0.63747428]
[1772712196075,0.66504968,2128.7,2127.5,0.63747428]
[1772712196375,5.77672,2129.2,2127.5,0.63747428]
[1772712196376,0.66504968,2128.5,2127.5,0.63747428]
[1772712196877,0.66504968,2128.5,2127.5,0.63840325]
[1772712199083,0.66504968,2128.5,2127.5,0.00092897]
[1772712199579,0.62496556,2128.3,2127.5,0.00092897]
[1772712200573,0.62496556,2128.2,2126.8,0.61020714]
[1772712201074,0.62496556,2128.2,2126.9,0.61020714]
[1772712201575,0.62946779,2128.2,2126.9,0.61582535]
[1772712203682,0.00450223,2128.2,2127.1,0.61020714]
[1772712204384,0.62496556,2129.1,2127.5,0.61020714]
[1772712204677,0.62496556,2129.1,2127.7,0.61020714]
[1772712204882,0.62496556,2128.9,2127.7,0.61020714]
[1772712205086,0.62496556,2128.5,2127.1,0.61020714]
[1772712205482,0.62496556,2128.3,2127.1,0.61020714]
[1772712205681,0.62496556,2128.3,2127.3,0.61020714]
[1772712211279,0.60064657,2128.9,2127.9,0.63647778]
[1772712211485,0.60064657,2129.3,2127.9,0.63647778]
[1772712211681,0.60064657,2129.3,2128.1,0.63647778]
[1772712211881,0.60064657,2129.3,2128.3,0.63647778]
[1772712212392,0.0047669,2129.3,2128.5,0.63647778]
[1772712212589,0.60064657,2130.1,2128.7,0.63647778]
[1772712213482,0.60535563,2130.1,2128.9,0.63647778]
[1772712213688,0.00470906,2130.1,2129.1,0.63647778]
[1772712215389,0.00470906,2130.1,2129.3,0.63647778]
[1772712216090,0.60535563,2130.1,2129.3,0.63647778]
[1772712217281,0.60535563,2130.1,2129.4,40.8]
[1772712217481,0.00470906,2130.1,2129.5,0.63647778]
[1772712217796,3.72881107,2131.2,2129.4,40.8]
[1772712217797,0.60064657,2131.1,2129.9,0.63647778]
[1772712218089,0.60064657,2130.9,2129.5,0.63647778]
[1772712218689,0.60403615,2130.9,2129.5,0.63647778]
[1772712219088,0.60064657,2130.7,2129.5,0.63647778]
[1772712220797,0.60064657,2130.7,2129.7,0.63647778]
[1772712221100,0.00338958,2130.9,2129.9,0.63647778]
[1772712221101,0.60403615,2130.9,2129.9,0.63647778]
[1772712222000,0.00338958,2130.9,2130.1,0.63647778]
[1772712222197,0.00338958,2130.9,2130.1,0.64090832]
[1772712222502,0.60064657,2131.7,2130.3,0.63647778]
[1772712223491,0.60570698,2131.7,2130.3,0.63647778]
[1772712226897,0.60064657,2131.5,2130.3,0.63647778]
[1772712228506,0.60064657,2131.3,2130.3,0.63647778]
[1772712229606,0.63571939,2131.1,2130.1,0.64782756]
[1772712229807,0.63571939,2131.1,2130.1,0.00443054]
[1772712230305,0.63571939,2131.1,2130.1,0.64782756]
[1772712231004,0.00506041,2131.7,2130.6,0.87804702]
[1772712231201,0.6407798,2131.7,2130.7,0.64339702]
[1772712231500,0.6407798,2131.7,2130.9,0.64339702]
[1772712232205,0.00506041,2131.7,2130.9,0.64339702]
[1772712233006,0.6407798,2131.7,2130.9,0.64339702]
[1772712234300,0.6407798,2131.7,2130.7,0.64339702]
[1772712235799,0.63571939,2131.5,2130.5,0.64339702]
[1772712236406,0.63571939,2131.5,2130.3,0.64339702]
[1772712236999,0.63571939,2131.4,2130.3,0.64339702]
[1772712240804,0.63571939,2131.2,2130.3,0.64339702]
[1772712241005,0.63571939,2131.0,2130.1,0.00443054]
[1772712241304,0.63571939,2130.8,2129.6,0.64339702]
[1772712241506,0.63571939,2130.6,2129.6,0.64339702]
[1772712241807,0.63571939,2130.4,2129.6,0.64339702]
[1772712242405,0.63571939,2130.4,2129.6,0.64925034]
[1772712243500,0.63571939,2130.4,2129.6,0.00585332]
[1772712243701,0.63571939,2130.2,2129.6,0.00585332]
[1772712244008,0.63571939,2130.0,2129.6,0.00585332]
[1772712244811,0.00582838,2130.2,2129.6,0.00585332]
[1772712244812,0.00582838,2130.2,2129.6,0.64925034]
[1772712245306,0.64154777,2130.2,2129.6,0.00585332]
[1772712245811,0.63571939,2130.0,2129.6,0.00585332]
[1772712247611,0.63571939,2129.9,2129.6,0.00585332]
[1772712247804,0.63571939,2129.9,2129.3,0.64339702]
[1772712248810,0.63571939,2129.9,2129.3,0.64898771]
[1772712249211,0.63571939,2129.9,2129.3,0.00559069]
[1772712250005,0.63571939,2129.9,2129.1,0.64339702]
[1772712250810,0.63571939,2129.9,2128.6,0.64339702]
[1772712251010,0.63571939,2129.7,2128.6,0.64928041]
[1772712251907,0.63571939,2129.1,2127.8,0.64339702]
[1772712252204,0.63571939,2128.9,2127.8,0.64339702]
[1772712252404,10.61071939,2128.9,2127.8,0.64339702]
[1772712252608,0.63571939,2128.8,2127.8,0.64339702]
[1772712252999,0.63571939,2129.2,2128.1,0.64339702]
[1772712253309,9.976,2129.5,2128.7,0.64339702]
[1772712253505,10.61171939,2129.5,2128.7,0.64339702]
[1772712253710,0.63571939,2129.4,2128.7,0.64339702]
[1772712257713,10.61771939,2129.6,2128.7,0.64339702]
[1772712258110,10.61771939,2129.6,2128.9,0.64339702]
[1772712258714,10.61771939,2130.1,2129.0,0.64345659]
[1772712259016,0.60797526,2130.0,2129.0,0.64345659]
[1772712259211,0.60797526,2130.0,2129.1,0.64345659]
[1772712261315,10.59197526,2130.1,2129.3,0.64345659]
[1772712261512,10.59197526,2130.1,2129.3,0.64880576]
[1772712261707,0.60797526,2130.1,2129.3,0.64880576]
[1772712261913,10.59297526,2130.1,2129.3,0.64880576]
[1772712262114,0.60797526,2130.0,2129.3,0.64880576]
[1772712263217,10.59880364,2130.2,2129.3,0.64880576]
[1772712263814,0.60797526,2130.6,2129.5,0.64345659]
[1772712264008,0.60797526,2131.0,2130.1,0.64345659]
[1772712264209,0.60797526,2131.0,2130.3,0.64345659]
[1772712264918,0.6126742,2131.0,2130.3,0.64345659]
[1772712266110,0.6126742,2131.0,2130.1,0.64345659]
[1772712267016,0.00469894,2131.0,2130.3,0.64345659]
[1772712267222,0.60797526,2131.4,2130.3,0.64345659]
[1772712268321,10.59930958,2131.4,2130.3,0.64345659]
[1772712268519,0.61230958,2131.4,2130.3,0.64345659]
[1772712268722,0.61230958,2131.4,2130.5,0.6346753]
[1772712269112,0.00433432,2131.4,2130.5,0.6346753]
[1772712270220,10.57477013,2131.9,2130.7,0.6346753]
[1772712270415,0.58877013,2131.8,2130.7,0.6346753]
[1772712271022,0.58877013,2131.8,2130.9,0.6346753]
[1772712271321,0.59305302,2131.8,2130.9,0.63896177]
[1772712272023,0.00428289,2131.8,2130.9,0.63896177]
[1772712273215,0.59305302,2131.8,2130.9,0.63896177]
[1772712273416,0.59305302,2131.8,2130.9,0.00428647]
[1772712273713,0.58877013,2131.6,2130.9,0.00428647]
[1772712274426,0.58877013,2131.6,2130.9,0.63896177]
[1772712276226,0.59305302,2131.8,2130.9,0.63896177]
[1772712277826,0.58877013,2132.5,2131.1,0.6346753]
[1772712278021,1.28413606,2132.7,2131.5,0.6346753]
[1772712278221,0.58877013,2132.6,2131.7,0.6346753]
[1772712278826,0.59372678,2132.6,2131.7,0.6346753]
[1772712279125,0.00495665,2132.6,2131.7,0.6346753]
[1772712280016,0.00495665,2132.6,2131.9,0.6346753]
[1772712280626,0.00495665,2132.6,2132.0,0.6346753]
[1772712281024,0.23436,2133.3,2132.0,0.6346753]
[1772712281025,0.58877013,2133.0,2132.0,0.6346753]
[1772712282129,0.59260388,2133.0,2132.0,0.6346753]
[1772712285728,0.58877013,2132.9,2132.0,0.6346753]
[1772712287129,0.58877013,2132.8,2131.4,0.6346753]
[1772712287528,0.58877013,2132.8,2131.5,40.8]
[1772712287734,0.58877013,2132.8,2131.6,0.6346753]
[1772712288130,0.58877013,2132.5,2131.4,0.6346753]
[1772712288335,0.58877013,2132.3,2131.0,0.6346753]
[1772712288534,0.58877013,2132.1,2131.0,0.6346753]
[1772712291425,0.2345,2132.0,2131.0,0.6346753]
[1772712291632,0.58834416,2131.9,2130.9,0.00428647]
[1772712292738,3.78266628,2131.7,2130.9,0.00428647]
[1772712293036,0.58834416,2131.6,2130.9,0.00428647]
[1772712293238,0.58834416,2131.6,2130.9,0.61961833]
[1772712294733,0.58834416,2132.0,2130.9,0.61961833]
[1772712295031,0.58834416,2131.9,2131.1,0.61533186]
[1772712296532,0.58834416,2132.5,2131.3,0.61533186]
[1772712296736,0.58834416,2132.5,2131.5,0.61533186]
[1772712297335,0.58834416,2132.5,2131.7,0.61533186]
[1772712298334,0.58834416,2132.5,2130.9,0.23890647]
[1772712298335,0.58834416,2132.3,2131.3,0.61533186]
[1772712298635,5.28982326,2132.4,2131.3,0.61533186]
[1772712298636,0.58834416,2132.1,2131.3,0.61533186]
[1772712298833,0.58834416,2132.1,2131.1,0.61533186]
[1772712299740,0.58834416,2132.5,2131.3,0.61533186]
[1772712299938,0.58834416,2132.3,2131.3,0.61533186]
[1772712300138,0.58834416,2132.1,2131.3,0.61533186]
[1772712300339,0.58834416,2132.1,2131.1,0.61533186]
[1772712301643,0.58834416,2131.9,2131.1,0.61533186]
[1772712302843,0.58834416,2131.9,2131.0,40.8]
[1772712303040,0.58834416,2131.9,2130.9,0.61961833]
[1772712303440,0.58834416,2131.8,2130.9,0.61961833]
[1772712304341,3.83343554,2132.3,2131.5,0.61533186]
[1772712304540,0.58834416,2132.3,2131.5,0.61533186]
[1772712305244,4.4217797,2132.0,2130.9,0.00428647]
[1772712305443,0.58834416,2131.8,2130.9,0.61961833]
[1772712306243,0.58834416,2132.0,2130.9,0.61961833]
[1772712306445,5.59329611,2132.3,2131.1,0.61533186]
[1772712306446,3.83343554,2132.3,2131.1,0.61533186]
[1772712306635,0.58834416,2132.1,2131.1,0.61533186]
[1772712308843,0.58834416,2132.3,2131.3,0.61533186]
[1772712309245,5.88832391,2132.2,2131.3,0.61533186]
[1772712309445,0.58834416,2132.2,2131.3,0.61533186]
[1772712310640,0.58834416,2132.4,2131.3,0.61533186]
[1772712310842,0.58834416,2132.2,2131.3,0.61533186]
[1772712311344,3.83343554,2132.5,2131.3,0.61533186]
[1772712311544,0.58834416,2132.4,2131.3,0.61533186]
[1772712311748,5.30290593,2132.3,2131.3,0.61533186]
[1772712312045,5.89125009,2132.3,2131.3,0.61533186]
[1772712312244,5.30290593,2132.2,2131.3,0.61533186]
[1772712313246,0.58834416,2132.3,2131.3,0.61533186]
[1772712314442,0.58834416,2132.3,2131.5,0.61533186]
[1772712317646,0.58834416,2132.1,2131.0,0.61533186]
[1772712319149,0.59251756,2131.9,2130.9,0.00428647]
[1772712319452,0.59251756,2131.7,2130.9,0.00428647]
[1772712319651,0.59251756,2131.5,2130.9,0.00428647]
[1772712319953,0.59653937,2131.5,2130.6,0.60345813]
[1772712320252,0.59653937,2131.5,2130.4,0.60345813]
[1772712320253,0.59251756,2131.3,2130.4,0.60345813]
[1772712320457,0.59251756,2131.1,2130.1,0.60345813]
[1772712320653,0.59251756,2130.9,2130.1,0.60345813]
[1772712320960,0.59251756,2130.9,2130.2,41.40345813]
[1772712321249,0.59251756,2130.9,2130.3,0.60345813]
[1772712322054,0.59251756,2130.9,2130.2,40.8]
[1772712322253,0.59251756,2130.9,2130.2,41.40345813]
[1772712322659,0.59251756,2130.9,2130.2,0.60345813]
[1772712323661,4.06801554,2131.4,2130.2,0.60345813]
[1772712323862,0.59251756,2131.3,2130.2,0.60345813]
[1772712324063,0.59251756,2131.1,2130.2,0.60345813]
[1772712325167,0.59251756,2130.9,2130.1,0.00545636]
[1772712325658,0.59251756,2130.9,2129.7,0.60345813]
[1772712326064,0.59251756,2130.7,2129.7,0.60345813]
[1772712326662,0.59251756,2130.7,2129.7,0.60686746]
[1772712328767,9.934,2131.1,2129.9,0.59550014]
[1772712328768,0.58143435,2131.1,2129.9,0.59550014]
[1772712328963,0.58143435,2130.9,2129.9,0.59550014]
[1772712330268,0.58143435,2130.9,2130.1,0.59550014]
[1772712331771,0.58143435,2131.2,2130.3,0.59550014]
[1772712333275,0.58143435,2131.2,2130.1,0.59550014]
[1772712334777,0.58143435,2131.2,2130.2,0.59550014]
[1772712337371,0.58143435,2131.2,2129.7,5.77848933]
[1772712337372,0.58143435,2131.2,2130.4,0.59550014]
[1772712338576,0.58143435,2131.2,2130.3,0.59550014]
[1772712338879,0.58143435,2131.2,2130.0,0.59550014]
[1772712339981,0.58143435,2131.2,2130.2,0.59550014]
[1772712341878,0.58143435,2131.1,2130.2,0.59550014]
[1772712343878,0.58143435,2131.1,2130.4,0.59550014]
[1772712346672,0.58143435,2131.1,2130.2,0.59550014]
[1772712346878,0.58143435,2130.8,2129.7,0.59890947]
[1772712347076,0.58143435,2130.6,2129.7,0.59890947]
[1772712347277,0.58143435,2130.4,2129.7,0.00340933]
[1772712347482,0.58143435,2130.2,2129.7,0.00340933]
[1772712347777,0.58143435,2130.2,2129.5,0.59550014]
[1772712348571,3.83343554,2130.5,2129.5,0.59550014]
[1772712348572,0.58143435,2130.0,2129.5,0.003653]
[1772712348771,0.58143435,2130.0,2129.3,0.59550014]
[1772712349782,0.58509511,2130.0,2129.3,0.59929675]
[1772712350181,0.00366076,2130.0,2129.3,0.59929675]
[1772712350383,0.60609075,2130.0,2129.3,0.59929675]
[1772712351085,0.60242999,2129.8,2129.3,0.00379661]
[1772712351286,0.60242999,2129.8,2129.1,0.59964114]
[1772712351985,0.60242999,2129.6,2128.5,0.59964114]
[1772712352286,0.60242999,2129.6,2128.7,0.59964114]
[1772712352885,0.60242999,2129.9,2128.9,0.59964114]
[1772712360384,0.60242999,2130.7,2130.0,0.59964114]
[1772712361284,0.60242999,2130.7,2129.5,0.59964114]
[1772712361588,0.60742492,2130.7,2129.5,0.60555352]
[1772712361785,0.00499493,2130.7,2130.0,0.23473]
[1772712361991,0.00499493,2130.7,2130.1,0.59964114]
[1772712363592,0.60242999,2131.3,2130.3,0.59964114]
[1772712363793,0.60242999,2131.3,2130.5,0.59964114]
[1772712364390,0.00422126,2131.3,2130.5,0.59964114]
[1772712365290,0.00422126,2131.3,2130.7,0.59964114]
[1772712365490,0.60242999,2131.6,2130.7,0.59964114]
[1772712366188,0.60242999,2131.6,2130.5,0.59964114]
[1772712366390,0.60242999,2131.4,2130.5,0.59964114]
[1772712366594,0.60838847,2131.6,2130.6,0.59964114]
[1772712366790,0.60838847,2131.6,2130.8,0.59964114]
[1772712367396,0.00595848,2131.6,2130.8,0.59964114]
[1772712367897,13.69512915,2132.3,2131.0,0.59964114]
[1772712367898,0.60242999,2132.0,2131.0,0.59964114]
[1772712368994,0.00403011,2132.0,2131.2,0.59964114]
[1772712369496,0.60242999,2132.4,2131.4,0.59964114]
[1772712369694,0.60242999,2132.9,2131.8,0.59964114]
[1772712369901,0.60242999,2132.8,2131.3,0.59964114]
[1772712370094,0.60242999,2132.6,2131.3,0.59964114]
[1772712370297,0.60242999,2132.4,2131.3,0.59964114]
[1772712370593,0.60673799,2132.4,2131.3,0.59964114]
[1772712370992,0.60242999,2132.2,2131.1,0.59964114]
[1772712371198,3.80136808,2132.0,2131.0,0.00604391]
[1772712371395,0.60242999,2131.8,2131.0,0.00604391]